fUST/lending_fUST_20250101
["ID","MTS","AMOUNT","RATE_DAILY","PERIOD"]
[347351462,1735724198057,-500.0,0.00015994,2]
[347351463,1735724198078,-301.28105286,0.00015994,2]
[347351464,1735724198099,-500.0,0.00015994,2]
[347351465,1735724198119,-500.0,0.00015994,2]
[347351466,1735724198142,-500.0,0.00015994,2]
[347351467,1735724198165,-500.0,0.00015994,2]
[347351468,1735724198187,-500.0,0.00015994,2]
[347351469,1735724198207,-500.0,0.00015994,2]
[347351470,1735724198227,-500.0,0.00015994,2]
[347351471,1735724198248,-500.0,0.00015994,2]
[347351472,1735724198269,-500.0,0.00015994,2]
[347351473,1735724198289,-500.0,0.00015994,2]
[347351474,1735724198309,-500.0,0.00015994,2]
[347351475,1735724198330,-649.7289295,0.00015994,2]
[347351476,1735724198354,-476.13575667,0.00015994,2]
[347351477,1735724198375,-500.0,0.00015994,2]
[347351478,1735724198398,-500.0,0.00015994,2]
[347351479,1735724198420,-500.0,0.00015994,2]
[347351480,1735724198442,-500.0,0.00015994,2]
[347351481,1735724198463,-500.0,0.00015994,2]
[347351482,1735724198484,-500.0,0.00015994,2]
[347351483,1735724198505,-500.0,0.00015994,2]
[347351484,1735724198527,-500.0,0.00015994,2]
[347351485,1735724198548,-500.0,0.00015994,2]
[347351486,1735724198568,-567760.0,0.00015995,2]
[347351487,1735724198589,-300.0,0.00015995,2]
[347351488,1735724198610,-18127.90639111,0.00015996,2]
[347351489,1735724198633,-286495.81447077,0.00015996,2]
[347351490,1735724198653,-152.0,0.00015996,2]
[347351491,1735724198817,-160.0,0.00015999,2]
[347351492,1735724198838,-428904.40363997,0.00016,7]
[347351493,1735724198859,-151.0,0.00016,2]
[347351494,1735724198880,-151.0,0.00016,2]
[347351495,1735724198900,-151.0,0.00016,2]
[347351496,1735724198921,-151.0,0.00016,2]
[347351497,1735724198943,-151.0,0.00016,2]
[347351498,1735724198964,-151.0,0.00016,2]
[347351499,1735724224457,499.99999999,0.00015994,2]
[347351502,1735724397896,-300.0,0.00015993,2]
[347351503,1735724397918,-500.0,0.00015994,2]
[347351504,1735724397941,-500.0,0.00015994,2]
[347351505,1735724397964,-500.0,0.00015994,2]
[347351506,1735724397986,-500.0,0.00015994,2]
[347351507,1735724398007,-348.71939824,0.00015994,2]
[347351508,1735724398030,-500.0,0.00015994,2]
[347351509,1735724398051,-500.0,0.00015994,2]
[347351510,1735724398072,-500.0,0.00015994,2]
[347351511,1735724398094,-500.0,0.00015994,2]
[347351512,1735724398117,-500.0,0.00015994,2]
[347351513,1735724398140,-500.0,0.00015994,2]
[347351514,1735724398162,-500.0,0.00015994,2]
[347351515,1735724398183,-500.0,0.00015994,2]
[347351516,1735724398204,-500.0,0.00015994,2]
[347351517,1735724398224,-500.0,0.00015994,2]
[347351518,1735724398246,-500.0,0.00015994,2]
[347351519,1735724398266,-276.28206167,0.00015994,2]
[347351520,1735724398287,-500.0,0.00015994,2]
[347351521,1735724398307,-151.0,0.00015997,2]
[347351522,1735724495069,226.136489,0.00013973,2]
[347351523,1735724500692,-394.88020071,0.00016256,2]
[347351524,1735724500714,-275.809146,0.00016595,2]
[347351525,1735724500734,-500.0,0.00017875,2]
[347351526,1735724500755,-500.0,0.00017875,2]
[347351527,1735724500775,-500.0,0.00017875,2]
[347351528,1735724500796,-483.686,0.0001804,2]
[347351529,1735724500820,-300.0,0.00018205,2]
[347351530,1735724500841,-10579.55317666,0.00018269,2]
[347351531,1735724500862,-502.54347369,0.00018423,2]
[347351532,1735724500883,-500.0,0.00018423,2]
[347351533,1735724500909,-185.654,0.00018449,2]
[347351534,1735724500931,-468.85301796,0.00018473,2]
[347351535,1735724500952,-502.57890955,0.00018473,2]
[347351536,1735724500973,-166.16887833,0.00018473,2]
[347351537,1735724500994,-500.0,0.00018473,2]
[347351538,1735724501015,-500.0,0.00018473,2]
[347351539,1735724501035,-190.53928266,0.00018489,2]
[347351540,1735724501056,-152.0,0.00018491,2]
[347351541,1735724501079,-500.0,0.00018499,2]
[347351542,1735724501100,-389.87051136,0.00018499,2]
[347351543,1735724501126,-500.0,0.00018499,2]
[347351544,1735724501149,-561.95920337,0.00018499,2]
[347351545,1735724501172,-500.0,0.00018499,2]
[347351546,1735724501193,-455.1057332,0.00018499,2]
[347351547,1735724501215,-500.0,0.00018499,2]
[347351548,1735724501237,-500.0,0.00018499,2]
[347351549,1735724501258,-188.42997471,0.00018499,2]
[347351550,1735724501280,-500.0,0.00018499,2]
[347351551,1735724501302,-500.0,0.00018499,2]
[347351552,1735724501325,-500.0,0.00018499,2]
[347351553,1735724501347,-500.0,0.00018499,2]
[347351554,1735724501371,-500.0,0.00018499,2]
[347351555,1735724501395,-500.0,0.00018499,2]
[347351556,1735724501418,-500.0,0.00018499,2]
[347351557,1735724501440,-558.37262393,0.00018499,2]
[347351558,1735724501464,-500.0,0.00018499,2]
[347351559,1735724501486,-500.0,0.00018499,2]
[347351560,1735724501509,-500.0,0.00018499,2]
[347351561,1735724501532,-500.0,0.00018499,2]
[347351562,1735724501555,-500.0,0.00018499,2]
[347351563,1735724501579,-500.0,0.00018499,2]
[347351564,1735724501602,-500.0,0.00018499,2]
[347351565,1735724501625,-500.0,0.00018499,2]
[347351566,1735724501648,-172.83264037,0.00018499,2]
[347351567,1735724501672,-500.0,0.00018499,2]
[347351568,1735724501694,-486.89586488,0.00018499,2]
[347351569,1735724501717,-500.0,0.00018499,2]
[347351570,1735724501741,-500.0,0.00018499,2]
[347351571,1735724501763,-500.0,0.00018499,2]
[347351572,1735724501785,-500.0,0.00018499,2]
[347351573,1735724501808,-500.0,0.00018499,2]
[347351574,1735724501834,-500.0,0.00018499,2]
[347351575,1735724501856,-500.0,0.00018499,2]
[347351576,1735724501881,-500.0,0.00018499,2]
[347351577,1735724501906,-500.0,0.00018499,2]
[347351578,1735724501930,-500.0,0.00018499,2]
[347351579,1735724501952,-500.0,0.00018499,2]
[347351580,1735724501975,-500.0,0.00018499,2]
[347351581,1735724502000,-500.0,0.00018499,2]
[347351582,1735724502022,-500.0,0.00018499,2]
[347351583,1735724502045,-500.0,0.00018499,2]
[347351584,1735724502067,-500.0,0.00018499,2]
[347351585,1735724502089,-500.0,0.00018499,2]
[347351586,1735724502111,-500.0,0.00018499,2]
[347351587,1735724502133,-500.0,0.00018499,2]
[347351588,1735724502155,-500.0,0.00018499,2]
[347351589,1735724502176,-500.0,0.00018499,2]
[347351590,1735724502201,-500.0,0.00018499,2]
[347351591,1735724502224,-500.0,0.00018499,2]
[347351592,1735724502397,-559.81392372,0.00018499,2]
[347351593,1735724502421,-500.0,0.00018499,2]
[347351594,1735724502444,-500.0,0.00018499,2]
[347351595,1735724502467,-500.0,0.00018499,2]
[347351596,1735724502490,-500.0,0.00018499,2]
[347351597,1735724502512,-500.0,0.00018499,2]
[347351598,1735724502534,-500.0,0.00018499,2]
[347351599,1735724502556,-500.0,0.00018499,2]
[347351600,1735724502579,-415.70796881,0.00018499,2]
[347351601,1735724502601,-500.0,0.00018499,2]
[347351602,1735724502623,-500.0,0.00018499,2]
[347351603,1735724502645,-500.0,0.00018499,2]
[347351604,1735724502668,-500.0,0.00018499,2]
[347351605,1735724502690,-500.0,0.00018499,2]
[347351606,1735724502711,-462.61224127,0.00018499,2]
[347351607,1735724502733,-500.0,0.00018499,2]
[347351608,1735724502755,-500.0,0.00018499,2]
[347351609,1735724502778,-500.0,0.00018499,2]
[347351610,1735724502799,-500.0,0.00018499,2]
[347351611,1735724502825,-500.0,0.00018499,2]
[347351612,1735724502846,-500.0,0.00018499,2]
[347351613,1735724502869,-500.0,0.00018499,2]
[347351614,1735724502893,-500.0,0.00018499,2]
[347351615,1735724502915,-180.69763039,0.00018499,2]
[347351616,1735724502936,-160.0,0.00018499,2]
[347351617,1735724502959,-187.26571319,0.00018499,2]
[347351618,1735724502981,-541.20966728,0.00018499,2]
[347351619,1735724503002,-12183.26533968,0.000185,2]
[347351620,1735724503025,-165569.78210128,0.000185,2]
[347351621,1735724503050,-264871.912777,0.000185,5]
[347351628,1735724842919,3784.37779488,0.00015,7]
[347351629,1735724842950,20000.0,0.00015,7]
[347351630,1735724842983,20000.0,0.00015,7]
[347351631,1735724843014,20000.0,0.00015,7]
[347351632,1735724843041,59298.06700549,0.00015,7]
[347351706,1735725034614,-151.0,0.00015997,2]
[347351707,1735725034624,-151.0,0.00015997,2]
[347351708,1735725034636,-156.55277491,0.00015997,2]
[347351709,1735725034645,-151.0,0.00016,2]
[347351710,1735725034655,-500.0,0.00016999,2]
[347351711,1735725034664,-531.5850354,0.0001701,2]
[347351712,1735725034675,-250.0,0.00017011,2]
[347351713,1735725034684,-1418.9613006,0.00017046,2]
[347351714,1735725034694,-4557.5451342,0.00017078,2]
[347351715,1735725034704,-500.0,0.00017821,4]
[347351716,1735725034713,-802.2882827,0.00017929,2]
[347351717,1735725034723,-300.0,0.00018399,2]
[347351718,1735725034733,-154.295124,0.000184,2]
[347351719,1735725034742,-3130.72551357,0.000184,2]
[347351720,1735725034752,-4579.30694574,0.000184,2]
[347351721,1735725034761,-990.15200539,0.000184,2]
[347351722,1735725034771,-500.15036042,0.00018473,2]
[347351723,1735725034781,-611.32069054,0.00018473,2]
[347351724,1735725034791,-152.0,0.00018488,2]
[347351725,1735725034800,-152.07935241,0.000185,2]
[347351726,1735725034810,-93355.83748013,0.000185,5]
[347351759,1735725038137,-324607.33457129,0.000185,5]
[347351760,1735725038149,-862.97452756,0.000185,5]
[347351761,1735725038160,-30783.80118794,0.000185,5]
[347351762,1735725038171,-500.0,0.000185,5]
[347351763,1735725038213,-1267450.31847499,0.000185,5]
[347351764,1735725038223,-2418.06,0.000185,2]
[347351765,1735725038232,-9199.64,0.000185,2]
[347351766,1735725038241,-5415.23,0.000185,2]
[347351767,1735725038250,-500.0,0.000185,5]
[347351768,1735725038259,-500.0,0.000185,5]
[347351769,1735725038269,-500.0,0.000185,5]
[347351770,1735725038279,-500.0,0.000185,5]
[347351771,1735725038288,-247.42126179,0.000185,5]
[347351772,1735725038299,-252.57873821,0.000185,5]
[347351773,1735725038308,-160.70553095,0.000185,5]
[347351774,1735725038317,-500.0,0.000185,5]
[347351775,1735725038327,-404.31390698,0.000185,5]
[347351777,1735725038336,-151.0,0.000185,2]
[347351779,1735725038345,-151.0,0.000185,2]
[347351781,1735725038355,-151.0,0.000185,2]
[347351783,1735725038364,-151.0,0.000185,2]
[347351785,1735725038373,-151.0,0.000185,2]
[347351787,1735725038383,-151.0,0.000185,2]
[347351789,1735725038393,-152.07935229,0.0001869,2]
[347351791,1735725038402,-153.0,0.00018771,2]
[347351793,1735725038411,-153.0,0.00018771,2]
[347351795,1735725038420,-153.0,0.00018771,2]
[347351797,1735725038430,-153.0,0.00018771,2]
[347351799,1735725038439,-153.0,0.00018771,2]
[347351802,1735725038448,-153.0,0.00018771,2]
[347351804,1735725038458,-1197.4875522,0.000188,2]
[347351806,1735725038467,-475.95184717,0.00018835,2]
[347351808,1735725038476,-4579.30694566,0.00018883,2]
[347351810,1735725038488,-151.0,0.00018977,4]
[347351812,1735725038497,-152.07935229,0.00018979,2]
[347351814,1735725038506,-159.8236228,0.00018989,2]
[347351816,1735725038516,-8424.79898507,0.0001899,2]
[347351818,1735725038528,-439.68216719,0.0001899,2]
[347352037,1735725040530,-5835.3462672,0.0001899,2]
[347352621,1735725046358,-372.952584,0.0001899,2]
[347352637,1735725046503,-20050.257934,0.0001899,2]
[347352639,1735725046512,-394.0,0.00019,2]
[347352641,1735725046521,-990.15200533,0.00019021,2]
[347352643,1735725046531,-2669.05591106,0.00019078,2]
[347352645,1735725046540,-469.492302,0.000191,8]
[347352647,1735725046549,-478.05500604,0.00019173,2]
[347352649,1735725046559,-598.15850248,0.00019173,2]
[347352651,1735725046568,-500.0,0.00019173,2]
[347352653,1735725046578,-503.51640862,0.00019173,2]
[347352655,1735725046587,-500.0,0.00019173,2]
[347352657,1735725046596,-501.30750501,0.00019173,2]
[347352659,1735725046605,-179.32099797,0.00019173,2]
[347352661,1735725046614,-500.0,0.00019173,2]
[347352663,1735725046623,-500.0,0.00019173,2]
[347352665,1735725046632,-160.44363532,0.00019177,2]
[347352667,1735725046641,-6091.63266984,0.00019178,2]
[347352669,1735725046651,-82784.89105064,0.00019178,2]
[347352671,1735725046660,-147940.95783279,0.00019178,2]
[347352673,1735725046669,-10998.49,0.00019178,2]
[347352675,1735725046678,-1718.89,0.00019178,2]
[347352677,1735725046687,-511.91898471,0.00019178,2]
[347352679,1735725046697,-500.0,0.00019178,2]
[347352681,1735725046706,-500.0,0.00019178,2]
[347352683,1735725046715,-500.0,0.00019178,2]
[347352685,1735725046725,-628.08,0.00019178,2]
[347352687,1735725046734,-500.0,0.00019178,2]
[347352689,1735725046743,-500.0,0.00019178,2]
[347352691,1735725046752,-500.0,0.00019178,2]
[347352693,1735725046761,-500.0,0.00019178,2]
[347352696,1735725046771,-500.0,0.00019178,2]
[347352698,1735725046779,-501.30570452,0.00019178,2]
[347352700,1735725046788,-500.0,0.00019178,2]
[347352702,1735725046800,-500.0,0.00019178,2]
[347352703,1735725046809,-501.08330631,0.00019178,2]
[347352706,1735725046819,-502.21283465,0.00019178,2]
[347352707,1735725046828,-500.0,0.00019178,2]
[347352709,1735725046837,-503.14469462,0.00019178,2]
[347352711,1735725046846,-500.0,0.00019178,2]
[347352714,1735725046857,-500.0,0.00019178,2]
[347352716,1735725046866,-503.21971003,0.00019178,2]
[347352718,1735725046875,-507.5761612,0.00019178,2]
[347352720,1735725046884,-500.0,0.00019178,2]
[347352722,1735725046893,-500.0,0.00019178,2]
[347352723,1735725046902,-500.0,0.00019178,2]
[347352725,1735725046912,-500.0,0.00019178,2]
[347352728,1735725046921,-500.0,0.00019178,2]
[347352730,1735725046930,-500.0,0.00019178,2]
[347352732,1735725046939,-435.29585301,0.00019178,2]
[347352734,1735725046949,-500.0,0.00019178,2]
[347352736,1735725046957,-500.0,0.00019178,2]
[347352738,1735725046970,-520.89639917,0.00019178,2]
[347352740,1735725046980,-500.0,0.00019178,2]
[347352742,1735725046988,-500.0,0.00019178,2]
[347352744,1735725046998,-500.0,0.00019178,2]
[347352746,1735725047007,-502.00901751,0.00019178,2]
[347352747,1735725047015,-500.0,0.00019178,2]
[347352750,1735725047024,-500.0,0.00019178,2]
[347352751,1735725047033,-500.0,0.00019178,2]
[347352754,1735725047043,-500.0,0.00019178,2]
[347352756,1735725047052,-348.30552899,0.00019178,2]
[347352770,1735725047172,-500.0,0.00019178,2]
[347352772,1735725047182,-461.74786477,0.00019178,2]
[347352774,1735725047191,-500.0,0.00019178,2]
[347352776,1735725047200,-500.87463889,0.00019178,2]
[347352778,1735725047209,-500.68352295,0.00019178,2]
[347352780,1735725047218,-536.82054436,0.00019178,2]
[347352782,1735725047226,-503.67915004,0.00019178,2]
[347352784,1735725047235,-500.0,0.00019178,2]
[347352786,1735725047244,-500.0,0.00019178,2]
[347352787,1735725047253,-500.0,0.00019178,2]
[347352790,1735725047262,-500.0,0.00019178,2]
[347352792,1735725047271,-502.78022828,0.00019178,2]
[347352794,1735725047280,-505.81163945,0.00019178,2]
[347352796,1735725047289,-500.0,0.00019178,2]
[347352798,1735725047298,-500.0,0.00019178,2]
[347352800,1735725047307,-500.0,0.00019178,2]
[347352802,1735725047316,-500.0,0.00019178,2]
[347352804,1735725047326,-501.32836618,0.00019178,2]
[347352805,1735725047335,-221.57313718,0.00019178,2]
[347352808,1735725047344,-500.0,0.00019178,2]
[347352810,1735725047354,-500.0,0.00019178,2]
[347352812,1735725047362,-500.36698192,0.00019178,2]
[347352814,1735725047371,-503.25271742,0.00019178,2]
[347352816,1735725047380,-500.0,0.00019178,2]
[347352818,1735725047389,-500.0,0.00019178,2]
[347352820,1735725047401,-474.97487182,0.00019178,2]
[347352822,1735725047410,-211.51699873,0.00019178,2]
[347352824,1735725047419,-560.31539926,0.00019178,2]
[347352826,1735725047428,-500.0,0.00019178,2]
[347352828,1735725047438,-500.0,0.00019178,2]
[347352830,1735725047447,-500.0,0.00019178,2]
[347352832,1735725047457,-504.18623326,0.00019178,2]
[347352834,1735725047466,-540.90178331,0.00019178,2]
[347352836,1735725047475,-500.0,0.00019178,2]
[347352838,1735725047484,-500.0,0.00019178,2]
[347352840,1735725047493,-500.0,0.00019178,2]
[347352842,1735725047502,-500.0,0.00019178,2]
[347352844,1735725047511,-500.0,0.00019178,2]
[347352846,1735725047520,-503.04669086,0.00019178,2]
[347352848,1735725047529,-588.37,0.00019178,2]
[347352850,1735725047538,-500.0,0.00019178,2]
[347352852,1735725047547,-422.6948417,0.00019178,2]
[347352854,1735725047556,-500.20030036,0.00019178,2]
[347352856,1735725047565,-500.0,0.00019178,2]
[347352858,1735725047573,-207.44651973,0.00019178,2]
[347352860,1735725047583,-500.0,0.00019178,2]
[347352862,1735725047592,-500.0,0.00019178,2]
[347352864,1735725047601,-500.0,0.00019178,2]
[347352866,1735725047610,-500.0,0.00019178,2]
[347352868,1735725047619,-502.4643162,0.00019178,2]
[347352870,1735725047628,-502.41348259,0.00019178,2]
[347352872,1735725047637,-500.0,0.00019178,2]
[347352874,1735725047647,-500.0,0.00019178,2]
[347352876,1735725047656,-504.71507672,0.00019178,2]
[347352878,1735725047667,-500.0,0.00019178,2]
[347352880,1735725047676,-500.0,0.00019178,2]
[347352882,1735725047686,-500.0,0.00019178,2]
[347352884,1735725047695,-500.0,0.00019178,2]
[347352886,1735725047704,-500.0,0.00019178,2]
[347352888,1735725047714,-500.0,0.00019178,2]
[347352890,1735725047723,-500.0,0.00019178,2]
[347352892,1735725047732,-150.38521571,0.00019178,2]
[347352894,1735725047741,-500.0,0.00019178,2]
[347352896,1735725047750,-501.88687253,0.00019178,2]
[347352898,1735725047759,-603.03,0.00019178,2]
[347352899,1735725047768,-303.64464243,0.00019178,2]
[347352901,1735725047777,-500.0,0.00019178,2]
[347352903,1735725047787,-502.87001527,0.00019178,2]
[347352905,1735725047796,-557.01,0.00019178,2]
[347352907,1735725047806,-500.0,0.00019178,2]
[347352909,1735725047816,-501.39228901,0.00019178,2]
[347352911,1735725047825,-2795.09,0.00019178,2]
[347352913,1735725047834,-861.34,0.00019178,2]
[347352915,1735725047843,-500.0,0.00019178,2]
[347352917,1735725047853,-511.3366219,0.00019178,2]
[347352920,1735725047863,-500.0,0.00019178,2]
[347352922,1735725047872,-500.0,0.00019178,2]
[347352924,1735725047881,-500.0,0.00019178,2]
[347352925,1735725047892,-500.0,0.00019178,2]
[347352927,1735725047901,-500.0,0.00019178,2]
[347352929,1735725047910,-500.0,0.00019178,2]
[347352931,1735725047919,-507.32936324,0.00019178,2]
[347352933,1735725047928,-500.0,0.00019178,2]
[347352935,1735725047937,-500.0,0.00019178,2]
[347352937,1735725047947,-500.0,0.00019178,2]
[347352939,1735725047956,-501.87047282,0.00019178,2]
[347352941,1735725047965,-500.0,0.00019178,2]
[347352943,1735725047976,-801.22,0.00019178,2]
[347352945,1735725047985,-3079.18,0.00019178,2]
[347352947,1735725047994,-500.0,0.00019178,2]
[347352949,1735725048003,-500.0,0.00019178,2]
[347352951,1735725048013,-500.46161647,0.00019178,2]
[347352953,1735725048022,-500.0,0.00019178,2]
[347352955,1735725048031,-500.0,0.00019178,2]
[347352957,1735725048040,-503.2220967,0.00019178,2]
[347352959,1735725048049,-500.0,0.00019178,2]
[347352961,1735725048059,-281.24926534,0.00019178,2]
[347352963,1735725048068,-500.0,0.00019178,2]
[347352965,1735725048078,-503.47091085,0.00019178,2]
[347352967,1735725048087,-639.6205156,0.00019178,2]
[347352969,1735725048096,-500.0,0.00019178,2]
[347352971,1735725048105,-223.2216129,0.00019178,2]
[347352973,1735725048115,-458.75739584,0.00019178,2]
[347352975,1735725048123,-500.0,0.00019178,2]
[347352977,1735725048133,-500.0,0.00019178,2]
[347352979,1735725048142,-151.0,0.00019178,2]
[347352981,1735725048153,-151.0,0.00019178,2]
[347352983,1735725048162,-151.0,0.00019178,2]
[347352985,1735725048171,-151.0,0.00019178,2]
[347352987,1735725048181,-500.0,0.00019178,2]
[347352989,1735725048190,-500.0,0.00019178,2]
[347352991,1735725048199,-500.0,0.00019178,2]
[347352993,1735725048208,-500.0,0.00019178,2]
[347352995,1735725048217,-500.0,0.00019178,2]
[347352997,1735725048227,-12170.76,0.00019178,2]
[347352999,1735725048236,-500.0,0.00019178,2]
[347353001,1735725048244,-151.0,0.00019178,2]
[347353003,1735725048253,-151.0,0.00019178,2]
[347353005,1735725048262,-151.0,0.00019178,2]
[347353007,1735725048272,-151.0,0.00019178,2]
[347353009,1735725048280,-287.615158,0.00019178,2]
[347353011,1735725048290,-500.0,0.00019178,2]
[347353013,1735725048299,-287.615158,0.00019178,2]
[347353015,1735725048307,-287.615158,0.00019178,2]
[347353017,1735725048316,-500.0,0.00019178,2]
[347353019,1735725048325,-500.0,0.00019178,2]
[347353020,1735725048334,-287.615158,0.00019178,2]
[347353022,1735725048343,-500.0,0.00019178,2]
[347353024,1735725048353,-500.0,0.00019178,2]
[347353026,1735725048361,-500.0,0.00019178,2]
[347353028,1735725048370,-500.0,0.00019178,2]
[347353030,1735725048379,-854.83,0.00019178,2]
[347353032,1735725048388,-151.0,0.00019178,2]
[347353034,1735725048397,-500.0,0.00019178,2]
[347353036,1735725048406,-500.0,0.00019178,2]
[347353038,1735725048414,-500.0,0.00019178,2]
[347353040,1735725048424,-500.0,0.00019178,2]
[347353042,1735725048433,-500.0,0.00019178,2]
[347353044,1735725048442,-502.73785946,0.00019178,2]
[347353046,1735725048452,-500.0,0.00019178,2]
[347353048,1735725048460,-151.0,0.00019178,2]
[347353050,1735725048470,-500.0,0.00019178,2]
[347353052,1735725048478,-500.0,0.00019178,2]
[347353054,1735725048487,-500.0,0.00019178,2]
[347353056,1735725048497,-500.0,0.00019178,2]
[347353058,1735725048506,-500.1383571,0.00019178,2]
[347353060,1735725048515,-500.0,0.00019178,2]
[347353061,1735725048525,-500.0,0.00019178,2]
[347353063,1735725048534,-500.0,0.00019178,2]
[347353065,1735725048543,-500.0,0.00019178,2]
[347353067,1735725048552,-737.73,0.00019178,2]
[347353069,1735725048561,-501.10183231,0.00019178,2]
[347353071,1735725048570,-500.0,0.00019178,2]
[347353073,1735725048579,-437.31388702,0.00019178,2]
[347353075,1735725048589,-500.0,0.00019178,2]
[347353077,1735725048598,-595.84079316,0.00019178,2]
[347353079,1735725048607,-500.0,0.00019178,2]
[347353081,1735725048615,-500.0,0.00019178,2]
[347353083,1735725048625,-500.0,0.00019178,2]
[347353085,1735725048634,-500.0,0.00019178,2]
[347353087,1735725048643,-516.21,0.00019178,2]
[347353089,1735725048653,-151.0,0.00019178,2]
[347353091,1735725048661,-511.48472186,0.00019178,2]
[347353093,1735725048670,-151.0,0.00019178,2]
[347353095,1735725048680,-151.0,0.00019178,2]
[347353097,1735725048689,-151.0,0.00019178,2]
[347353099,1735725048699,-500.0,0.00019178,2]
[347353101,1735725048708,-500.0,0.00019178,2]
[347353103,1735725048717,-500.0,0.00019178,2]
[347353105,1735725048726,-500.0,0.00019178,2]
[347353107,1735725048736,-500.0,0.00019178,2]
[347353108,1735725048745,-500.0,0.00019178,2]
[347353110,1735725048754,-502.33794528,0.00019178,2]
[347353112,1735725048763,-500.0,0.00019178,2]
[347353114,1735725048773,-500.0,0.00019178,2]
[347353116,1735725048783,-500.0,0.00019178,2]
[347353118,1735725048792,-334.14173577,0.00019178,2]
[347353120,1735725048802,-501.09943716,0.00019178,2]
[347353122,1735725048811,-500.0,0.00019178,2]
[347353124,1735725048820,-151.0,0.00019178,2]
[347353126,1735725048829,-500.0,0.00019178,2]
[347353128,1735725048838,-151.0,0.00019178,2]
[347353130,1735725048847,-500.0,0.00019178,2]
[347353132,1735725048857,-500.0,0.00019178,2]
[347353134,1735725048867,-500.0,0.00019178,2]
[347353136,1735725048876,-500.0,0.00019178,2]
[347353138,1735725048885,-500.0,0.00019178,2]
[347353140,1735725048894,-500.0,0.00019178,2]
[347353142,1735725048903,-500.65572013,0.00019178,2]
[347353144,1735725048913,-500.0,0.00019178,2]
[347353146,1735725048922,-500.0,0.00019178,2]
[347353148,1735725048931,-151.0,0.00019178,2]
[347353149,1735725048940,-500.0,0.00019178,2]
[347353151,1735725048950,-151.0,0.00019178,2]
[347353153,1735725048959,-219.391353,0.00019178,2]
[347353155,1735725048971,-219.391353,0.00019178,2]
[347353157,1735725048988,-500.0,0.00019178,2]
[347353159,1735725048998,-500.0,0.00019178,2]
[347353161,1735725049007,-219.391353,0.00019178,2]
[347353163,1735725049016,-219.391353,0.00019178,2]
[347353165,1735725049025,-500.0,0.00019178,2]
[347353167,1735725049034,-503.37565967,0.00019178,2]
[347353168,1735725049044,-500.0,0.00019178,2]
[347353169,1735725049053,-500.0,0.00019178,2]
[347353170,1735725049061,-500.0,0.00019178,2]
[347353171,1735725049151,-500.0,0.00019178,2]
[347353172,1735725049170,-151.0,0.00019178,2]
[347353173,1735725049180,-151.0,0.00019178,2]
[347353174,1735725049189,-500.0,0.00019178,2]
[347353175,1735725049198,-507.64761109,0.00019178,2]
[347353176,1735725049207,-500.0,0.00019178,2]
[347353177,1735725049216,-501.870589,0.00019178,2]
[347353178,1735725049225,-500.0,0.00019178,2]
[347353179,1735725049235,-500.0,0.00019178,2]
[347353180,1735725049244,-500.0,0.00019178,2]
[347353181,1735725049253,-500.0,0.00019178,2]